fUSD/lending_fUSD_20250720
["ID","MTS","AMOUNT","RATE_DAILY","PERIOD"]
[373443711,1753012276648,-353.87864509,0.00019397,2]
[373443712,1753012276657,-964.37,0.00019397,2]
[373443713,1753012276666,-480.0,0.00019397,2]
[373443714,1753012276676,-480.0,0.00019397,2]
[373443715,1753012276686,-480.0,0.00019397,2]
[373443716,1753012276695,-480.0,0.00019397,2]
[373443717,1753012276706,-570.46,0.00019397,2]
[373443718,1753012276715,-153.656277,0.00019397,2]
[373443719,1753012276726,-153.656277,0.00019397,2]
[373443720,1753012276736,-440.0,0.00019397,2]
[373443721,1753012276745,-271.31716434,0.00019397,2]
[373443722,1753012276756,-1246.85,0.00019397,2]
[373443723,1753012276765,-480.0,0.00019397,2]
[373443724,1753012276775,-153.656277,0.00019397,2]
[373443725,1753012276784,-153.656277,0.00019397,2]
[373443726,1753012276794,-151.0,0.00019397,2]
[373443727,1753012276804,-280.0,0.00019397,2]
[373443728,1753012276813,-480.0,0.00019397,2]
[373443729,1753012276822,-480.0,0.00019397,2]
[373443730,1753012276831,-480.0,0.00019397,2]
[373443731,1753012276840,-480.0,0.00019397,2]
[373443732,1753012276850,-1031.45,0.00019397,2]
[373443733,1753012276859,-480.0,0.00019397,2]
[373443734,1753012276868,-609.45,0.00019397,2]
[373443735,1753012276877,-480.0,0.00019397,2]
[373443736,1753012276886,-823.99,0.00019397,2]
[373443737,1753012276896,-480.0,0.00019397,2]
[373443738,1753012276908,-480.0,0.00019397,2]
[373443739,1753012276917,-480.0,0.00019397,2]
[373443740,1753012276926,-1158.28,0.00019397,2]
[373443741,1753012276936,-337.65010913,0.00019397,2]
[373443742,1753012276946,-480.0,0.00019397,2]
[373443743,1753012276955,-480.0,0.00019397,2]
[373443744,1753012276965,-500.0,0.00019397,2]
[373443745,1753012276975,-480.0,0.00019397,2]
[373443746,1753012276984,-480.0,0.00019397,2]
[373443747,1753012276993,-272.33249993,0.00019397,2]
[373443748,1753012277002,-480.0,0.00019397,2]
[373443749,1753012277012,-546.07,0.00019397,2]
[373443750,1753012277021,-480.0,0.00019397,2]
[373443751,1753012277031,-480.0,0.00019397,2]
[373443752,1753012277040,-480.0,0.00019397,2]
[373443753,1753012277051,-391.24581713,0.00019397,2]
[373443754,1753012277060,-531.3,0.00019397,2]
[373443755,1753012277069,-480.0,0.00019397,2]
[373443756,1753012277079,-480.0,0.00019397,2]
[373443757,1753012277088,-480.0,0.00019397,2]
[373443758,1753012277097,-480.0,0.00019397,2]
[373443759,1753012277107,-838.96,0.00019397,2]
[373443760,1753012277115,-1131.98,0.00019397,2]
[373443761,1753012277125,-650.5,0.00019397,2]
[373443762,1753012277134,-480.0,0.00019397,2]
[373443763,1753012277143,-480.0,0.00019397,2]
[373443764,1753012277153,-480.0,0.00019397,2]
[373443765,1753012277162,-480.0,0.00019397,2]
[373443766,1753012277171,-620.12,0.00019397,2]
[373443767,1753012277180,-705.62,0.00019397,2]
[373443768,1753012277190,-480.0,0.00019397,2]
[373443769,1753012277199,-1860.75,0.00019397,2]
[373443770,1753012277210,-480.0,0.00019397,2]
[373443771,1753012277219,-480.0,0.00019397,2]
[373443772,1753012277229,-300.0,0.00019397,2]
[373443773,1753012277238,-480.0,0.00019397,2]
[373443774,1753012277247,-480.0,0.00019397,2]
[373443775,1753012277256,-480.0,0.00019397,2]
[373443776,1753012277266,-480.0,0.00019397,2]
[373443777,1753012277276,-480.0,0.00019397,2]
[373443778,1753012277285,-600.80405262,0.00019397,2]
[373443779,1753012277294,-480.0,0.00019397,2]
[373443780,1753012277304,-480.0,0.00019397,2]
[373443781,1753012277313,-480.0,0.00019397,2]
[373443782,1753012277323,-151.0,0.00019397,2]
[373443783,1753012277332,-733.89,0.00019397,2]
[373443784,1753012277341,-151.0,0.00019397,2]
[373443785,1753012277351,-1047.76,0.00019397,2]
[373443786,1753012277360,-480.0,0.00019397,2]
[373443787,1753012277369,-480.0,0.00019397,2]
[373443788,1753012277379,-1125.72,0.00019397,2]
[373443789,1753012277389,-535.32,0.00019397,2]
[373443790,1753012277402,-2308.22,0.00019397,2]
[373443791,1753012277411,-1643.24,0.00019397,2]
[373443792,1753012277420,-859.55,0.00019397,2]
[373443793,1753012277429,-364.28603496,0.00019397,2]
[373443794,1753012277438,-480.0,0.00019397,2]
[373443795,1753012277450,-608.28,0.00019397,2]
[373443796,1753012277459,-487.85,0.00019397,2]
[373443797,1753012277467,-480.0,0.00019397,2]
[373443798,1753012277477,-480.0,0.00019397,2]
[373443799,1753012277486,-1063.24,0.00019397,2]
[373443800,1753012277495,-830.52,0.00019397,2]
[373443801,1753012277503,-491.07,0.00019397,2]
[373443802,1753012277513,-480.0,0.00019397,2]
[373443803,1753012277522,-480.0,0.00019397,2]
[373443804,1753012277532,-2006.46,0.00019397,2]
[373443805,1753012277540,-480.0,0.00019397,2]
[373443806,1753012277550,-480.0,0.00019397,2]
[373443807,1753012277559,-480.0,0.00019397,2]
[373443808,1753012277568,-821.71,0.00019397,2]
[373443809,1753012277577,-480.0,0.00019397,2]
[373443810,1753012277586,-226.69769586,0.00019397,2]
[373443811,1753012277595,-1081.36,0.00019397,2]
[373443812,1753012277604,-484.35,0.00019397,2]
[373443813,1753012277614,-480.0,0.00019397,2]
[373443814,1753012277623,-480.0,0.00019397,2]
[373443815,1753012277633,-480.0,0.00019397,2]
[373443816,1753012277642,-970.42,0.00019397,2]
[373443817,1753012277651,-510.35,0.00019397,2]
[373443818,1753012277660,-480.0,0.00019397,2]
[373443819,1753012277669,-480.0,0.00019397,2]
[373443820,1753012277679,-500.0,0.00019397,2]
[373443821,1753012277688,-480.0,0.00019397,2]
[373443822,1753012277699,-151.0,0.00019397,2]
[373443823,1753012277709,-151.0,0.00019397,2]
[373443824,1753012277718,-480.0,0.00019397,2]
[373443825,1753012277727,-1032.03,0.00019397,2]
[373443826,1753012277737,-480.0,0.00019397,2]
[373443827,1753012277747,-480.0,0.00019397,2]
[373443828,1753012277755,-480.0,0.00019397,2]
[373443829,1753012277765,-480.0,0.00019397,2]
[373443830,1753012277774,-487.73516626,0.00019397,2]
[373443831,1753012277784,-480.0,0.00019397,2]
[373443832,1753012277793,-480.0,0.00019397,2]
[373443833,1753012277804,-480.0,0.00019397,2]
[373443834,1753012277819,-480.0,0.00019397,2]
[373443835,1753012277828,-721.56,0.00019397,2]
[373443836,1753012277838,-480.0,0.00019397,2]
[373443837,1753012277847,-2579.31,0.00019397,2]
[373443838,1753012277856,-480.0,0.00019397,2]
[373443839,1753012277865,-480.0,0.00019397,2]
[373443840,1753012277874,-495.17,0.00019397,2]
[373443841,1753012277883,-480.0,0.00019397,2]
[373443842,1753012277895,-480.0,0.00019397,2]
[373443843,1753012277911,-480.0,0.00019397,2]
[373443844,1753012277920,-820.17,0.00019397,2]
[373443845,1753012277929,-480.0,0.00019397,2]
[373443846,1753012277940,-1031.33,0.00019397,2]
[373443847,1753012277950,-397.43650554,0.00019397,2]
[373443848,1753012277960,-480.0,0.00019397,2]
[373443849,1753012277970,-921.96,0.00019397,2]
[373443850,1753012277982,-480.0,0.00019397,2]
[373443851,1753012277992,-480.0,0.00019397,2]
[373443852,1753012278002,-480.0,0.00019397,2]
[373443853,1753012278011,-480.0,0.00019397,2]
[373443854,1753012278022,-480.0,0.00019397,2]
[373443855,1753012278031,-480.0,0.00019397,2]
[373443856,1753012278041,-480.0,0.00019397,2]
[373443857,1753012278050,-1787.01,0.00019397,2]
[373443858,1753012278059,-480.0,0.00019397,2]
[373443859,1753012278069,-480.0,0.00019397,2]
[373443860,1753012278079,-480.0,0.00019397,2]
[373443861,1753012278088,-350.73149474,0.00019397,2]
[373443862,1753012278098,-480.0,0.00019397,2]
[373443863,1753012278107,-480.0,0.00019397,2]
[373443864,1753012278117,-857.35,0.00019397,2]
[373443865,1753012278126,-754.41,0.00019397,2]
[373443866,1753012278135,-855.56,0.00019397,2]
[373443867,1753012278144,-480.0,0.00019397,2]
[373443868,1753012278153,-480.0,0.00019397,2]
[373443869,1753012278162,-480.0,0.00019397,2]
[373443870,1753012278171,-480.0,0.00019397,2]
[373443871,1753012278181,-1095.37,0.00019397,2]
[373443872,1753012278190,-480.0,0.00019397,2]
[373443873,1753012278200,-480.0,0.00019397,2]
[373443874,1753012278210,-480.0,0.00019397,2]
[373443875,1753012278220,-480.0,0.00019397,2]
[373443876,1753012278229,-480.0,0.00019397,2]
[373443877,1753012278239,-423.18471184,0.00019397,2]
[373443878,1753012278251,-480.0,0.00019397,2]
[373443879,1753012278260,-151.0,0.00019397,2]
[373443880,1753012278271,-769.4,0.00019397,2]
[373443881,1753012278280,-480.0,0.00019397,2]
[373443882,1753012278289,-151.0,0.00019397,2]
[373443883,1753012278301,-480.0,0.00019397,2]
[373443884,1753012278310,-480.0,0.00019397,2]
[373443885,1753012278319,-480.0,0.00019397,2]
[373443886,1753012278328,-260.0,0.00019397,2]
[373443887,1753012278338,-480.0,0.00019397,2]
[373443888,1753012278347,-480.26,0.00019397,2]
[373443889,1753012278357,-996.09,0.00019397,2]
[373443890,1753012278366,-151.0,0.00019397,2]
[373443891,1753012278375,-151.0,0.00019397,2]
[373443892,1753012278384,-710.75,0.00019397,2]
[373443893,1753012278393,-1135.2,0.00019397,2]
[373443894,1753012278403,-2070.52,0.00019397,2]
[373443895,1753012278412,-480.0,0.00019397,2]
[373443896,1753012278421,-480.0,0.00019397,2]
[373443897,1753012278430,-480.0,0.00019397,2]
[373443898,1753012278440,-279.95,0.00019397,2]
[373443899,1753012278450,-1066.62,0.00019397,2]
[373443900,1753012278460,-480.0,0.00019397,2]
[373443901,1753012278469,-480.0,0.00019397,2]
[373443902,1753012278478,-480.0,0.00019397,2]
[373443903,1753012278487,-480.0,0.00019397,2]
[373443904,1753012278497,-556.86,0.00019397,2]
[373443905,1753012278506,-480.0,0.00019397,2]
[373443906,1753012278515,-480.0,0.00019397,2]
[373443907,1753012278524,-480.0,0.00019397,2]
[373443908,1753012278533,-480.0,0.00019397,2]
[373443909,1753012278542,-480.0,0.00019397,2]
[373443910,1753012278554,-480.0,0.00019397,2]
[373443911,1753012278562,-705.17,0.00019397,2]
[373443912,1753012278571,-480.0,0.00019397,2]
[373443913,1753012278581,-888.33,0.00019397,2]
[373443914,1753012278589,-480.0,0.00019397,2]
[373443915,1753012278598,-480.0,0.00019397,2]
[373443916,1753012278608,-480.0,0.00019397,2]
[373443917,1753012278617,-480.0,0.00019397,2]
[373443918,1753012278626,-480.0,0.00019397,2]
[373443919,1753012278636,-480.0,0.00019397,2]
[373443920,1753012278645,-2479.99,0.00019397,2]
[373443921,1753012278655,-151.0,0.00019397,2]
[373443922,1753012278665,-480.0,0.00019397,2]
[373443923,1753012278674,-151.0,0.00019397,2]
[373443924,1753012278683,-480.0,0.00019397,2]
[373443925,1753012278693,-480.0,0.00019397,2]
[373443926,1753012278702,-381.74755982,0.00019397,2]
[373443927,1753012278712,-672.527656,0.00019397,2]
[373443928,1753012278721,-672.527656,0.00019397,2]
[373443929,1753012278730,-480.0,0.00019397,2]
[373443930,1753012278739,-480.0,0.00019397,2]
[373443931,1753012278748,-480.0,0.00019397,2]
[373443932,1753012278757,-728.07,0.00019397,2]
[373443933,1753012278767,-480.0,0.00019397,2]
[373443934,1753012278777,-672.527656,0.00019397,2]
[373443935,1753012278786,-672.527656,0.00019397,2]
[373443936,1753012278796,-480.0,0.00019397,2]
[373443937,1753012278807,-835.61,0.00019397,2]
[373443938,1753012278816,-480.0,0.00019397,2]
[373443939,1753012278825,-480.0,0.00019397,2]
[373443940,1753012278835,-480.0,0.00019397,2]
[373443941,1753012278845,-480.0,0.00019397,2]
[373443942,1753012279012,-563.47,0.00019397,2]
[373443943,1753012279039,-504.99,0.00019397,2]
[373443944,1753012279051,-385.90299901,0.00019397,2]
[373443945,1753012279061,-1626.19,0.00019397,2]
[373443946,1753012279071,-480.0,0.00019397,2]
[373443947,1753012279080,-480.0,0.00019397,2]
[373443948,1753012279090,-480.0,0.00019397,2]
[373443949,1753012279099,-790.42,0.00019397,2]
[373443950,1753012279108,-480.0,0.00019397,2]
[373443951,1753012279118,-8120.01,0.00019397,2]
[373443952,1753012279127,-480.0,0.00019397,2]
[373443953,1753012279137,-480.0,0.00019397,2]
[373443954,1753012279148,-480.0,0.00019397,2]
[373443955,1753012279157,-480.0,0.00019397,2]
[373443956,1753012279167,-480.0,0.00019397,2]
[373443957,1753012279176,-890.75,0.00019397,2]
[373443958,1753012279186,-1260.21,0.00019397,2]
[373443959,1753012279196,-480.0,0.00019397,2]
[373443960,1753012279205,-765.44,0.00019397,2]
[373443961,1753012279215,-480.0,0.00019397,2]
[373443962,1753012279225,-2842.32,0.00019397,2]
[373443963,1753012279234,-480.0,0.00019397,2]
[373443964,1753012279243,-608.29899663,0.00019397,2]
[373443965,1753012279253,-2313.66,0.00019397,2]
[373443966,1753012279263,-814.42,0.00019397,2]
[373443967,1753012279272,-480.0,0.00019397,2]
[373443968,1753012279282,-480.0,0.00019397,2]
[373443969,1753012279291,-480.0,0.00019397,2]
[373443970,1753012279302,-1249.46,0.00019397,2]
[373443971,1753012279312,-225.33278059,0.00019397,2]
[373443972,1753012279322,-480.0,0.00019397,2]
[373443973,1753012279332,-602.219984,0.00019397,2]
[373443974,1753012279342,-480.0,0.00019397,2]
[373443975,1753012279352,-480.0,0.00019397,2]
[373443976,1753012279361,-602.219984,0.00019397,2]
[373443977,1753012279371,-1118.63,0.00019397,2]
[373443978,1753012279381,-480.0,0.00019397,2]
[373443979,1753012279391,-602.219984,0.00019397,2]
[373443980,1753012279401,-602.219984,0.00019397,2]
[373443981,1753012279410,-2277.64,0.00019397,2]
[373443982,1753012279419,-1787.88,0.00019397,2]
[373443983,1753012279429,-480.0,0.00019397,2]
[373443984,1753012279439,-480.0,0.00019397,2]
[373443985,1753012279448,-480.0,0.00019397,2]
[373443986,1753012279457,-480.0,0.00019397,2]
[373443987,1753012279466,-480.0,0.00019397,2]
[373443988,1753012279475,-480.0,0.00019397,2]
[373443989,1753012279485,-480.0,0.00019397,2]
[373443990,1753012279494,-3788.17,0.00019397,2]
[373443991,1753012279504,-480.0,0.00019397,2]
[373443992,1753012279513,-912.68,0.00019397,2]
[373443993,1753012279522,-858.0,0.00019397,2]
[373443994,1753012279532,-480.0,0.00019397,2]
[373443995,1753012279542,-480.0,0.00019397,2]
[373443996,1753012279552,-480.0,0.00019397,2]
[373443997,1753012279563,-480.0,0.00019397,2]
[373443998,1753012279573,-1736.22,0.00019397,2]
[373443999,1753012279583,-480.0,0.00019397,2]
[373444000,1753012279593,-480.0,0.00019397,2]
[373444001,1753012279603,-480.0,0.00019397,2]
[373444002,1753012279613,-1533.89,0.00019397,2]
[373444003,1753012279623,-480.0,0.00019397,2]
[373444004,1753012279632,-480.0,0.00019397,2]
[373444005,1753012279641,-480.0,0.00019397,2]
[373444006,1753012279651,-1175.15,0.00019397,2]
[373444007,1753012279661,-5085.65,0.00019397,2]
[373444008,1753012279672,-480.0,0.00019397,2]
[373444009,1753012279682,-480.0,0.00019397,2]
[373444010,1753012279691,-505.29864265,0.00019397,2]
[373444011,1753012279701,-480.0,0.00019397,2]
[373444012,1753012279711,-480.0,0.00019397,2]
[373444013,1753012279720,-480.0,0.00019397,2]
[373444014,1753012279730,-480.0,0.00019397,2]
[373444015,1753012279739,-480.0,0.00019397,2]
[373444016,1753012279749,-480.0,0.00019397,2]
[373444017,1753012279758,-196.849162,0.00019397,2]
[373444018,1753012279767,-375.9451451,0.00019397,2]
[373444019,1753012279777,-480.0,0.00019397,2]
[373444020,1753012279786,-196.849162,0.00019397,2]
[373444021,1753012279795,-480.0,0.00019397,2]
[373444022,1753012279805,-467.76655132,0.00019397,2]
[373444023,1753012279815,-480.0,0.00019397,2]
[373444024,1753012279824,-737.8,0.00019397,2]
[373444025,1753012279834,-480.0,0.00019397,2]
[373444026,1753012279843,-1233.26,0.00019397,2]
[373444027,1753012279852,-916.74,0.00019397,2]
[373444028,1753012279862,-196.849162,0.00019397,2]
[373444029,1753012279871,-196.849162,0.00019397,2]
[373444030,1753012279880,-2135.07,0.00019397,2]
[373444031,1753012279889,-480.0,0.00019397,2]
[373444032,1753012279901,-311.9525253,0.00019397,2]
[373444033,1753012279911,-1394.96,0.00019397,2]
[373444034,1753012279921,-480.0,0.00019397,2]
[373444035,1753012279931,-480.0,0.00019397,2]
[373444036,1753012279940,-480.0,0.00019397,2]
[373444037,1753012279950,-7138.94,0.00019397,2]
[373444038,1753012279959,-491.81569612,0.00019397,2]
[373444039,1753012279969,-370.14196461,0.00019397,2]
[373444040,1753012279979,-508.9,0.00019397,2]
[373444041,1753012279989,-1525.27,0.00019397,2]
[373444042,1753012279998,-480.0,0.00019397,2]
[373444043,1753012280008,-1322.56,0.00019397,2]
[373444044,1753012280017,-1290.84,0.00019397,2]
[373444045,1753012280026,-480.0,0.00019397,2]
[373444046,1753012280035,-500.0,0.00019397,2]
[373444047,1753012280044,-480.0,0.00019397,2]
[373444048,1753012280055,-386.96187585,0.00019397,2]
[373444049,1753012280064,-480.0,0.00019397,2]
[373444050,1753012280074,-480.0,0.00019397,2]
[373444051,1753012280083,-480.0,0.00019397,2]
[373444052,1753012280092,-480.0,0.00019397,2]
[373444053,1753012280101,-2285.01,0.00019397,2]
[373444054,1753012280111,-480.0,0.00019397,2]
[373444055,1753012280120,-480.0,0.00019397,2]
[373444056,1753012280129,-480.0,0.00019397,2]
[373444057,1753012280139,-480.0,0.00019397,2]
[373444058,1753012280147,-827.28,0.00019397,2]
[373444059,1753012280157,-480.0,0.00019397,2]
[373444060,1753012280167,-566.30795764,0.00019397,2]
[373444061,1753012280176,-480.0,0.00019397,2]
[373444062,1753012280185,-529.81516965,0.00019397,2]
[373444063,1753012280195,-273.53634367,0.00019397,2]
[373444064,1753012280205,-1029.42,0.00019397,2]
[373444065,1753012280214,-480.0,0.00019397,2]
[373444066,1753012280223,-480.0,0.00019397,2]
[373444067,1753012280232,-480.0,0.00019397,2]
[373444068,1753012280241,-631.75808722,0.00019397,2]
[373444069,1753012280709,-440.0,0.00019287,2]
[373444070,1753012280718,-5563.6671992,0.00019397,2]
[373444071,1753012280756,-151.0,0.00019287,2]
[373444072,1753012280765,-276.19471358,0.00019397,2]
[373444073,1753012280775,-2166.04,0.00019397,2]
[373444074,1753012280784,-692.67,0.00019397,2]
[373444075,1753012280793,-480.0,0.00019397,2]
[373444076,1753012280809,-592.07528804,0.00019397,2]
[373444077,1753012280831,-297.43471196,0.00019397,2]
[373444078,1753012280842,-461.70306086,0.00019397,2]
[373444079,1753012280852,-1253.82,0.00019397,2]
[373444080,1753012280862,-632.55712834,0.00019397,2]
[373444081,1753012281618,-211.90598475,0.000179,2]
[373444082,1753012281628,-211.90598475,0.00018122,2]
[373444083,1753012281637,-280.27563632,0.00018179,2]
[373444084,1753012281741,-608.72436368,0.00018179,2]
[373444085,1753012281750,-211.90598475,0.00018344,2]
[373444086,1753012281759,-211.90598475,0.00018567,2]
[373444087,1753012281769,-211.90598475,0.00018789,2]
[373444088,1753012281778,-211.90598475,0.00019011,2]
[373444089,1753012281788,-235.516447,0.00019178,2]
[373444090,1753012281797,-2360.15,0.00019178,2]
[373444091,1753012281808,-480.0,0.00019178,2]
[373444092,1753012281817,-445.37956795,0.00019178,2]
[373444093,1753012281826,-480.0,0.00019178,2]
[373444094,1753012281835,-235.516447,0.00019178,2]
[373444095,1753012281845,-211.90598475,0.00019233,2]
[373444096,1753012281854,-2360.15,0.00019287,2]
[373444097,1753012281864,-480.0,0.00019287,2]
[373444098,1753012281874,-151.0,0.00019382,2]
[373444099,1753012281883,-66.43287166,0.00019397,2]
[373444100,1753012281894,-151.0,0.00019397,2]
[373444101,1753012281906,-480.0,0.00019397,2]
[373444102,1753012281915,-151.0,0.00019397,2]
[373444103,1753012281925,-480.0,0.00019397,2]
[373444104,1753012281934,-480.0,0.00019397,2]
[373444105,1753012281945,-480.0,0.00019397,2]
[373444106,1753012281954,-151.0,0.00019397,2]
[373444107,1753012281963,-1556.05,0.00019397,2]
[373444108,1753012281973,-480.0,0.00019397,2]
[373444109,1753012281983,-151.0,0.00019397,2]
[373444110,1753012281992,-480.0,0.00019397,2]
[373444111,1753012282002,-488.80474797,0.00019397,2]
[373444112,1753012282011,-480.0,0.00019397,2]
[373444113,1753012282021,-945.9,0.00019397,2]
[373444114,1753012282030,-151.0,0.00019397,2]
[373444115,1753012282039,-480.0,0.00019397,2]
[373444116,1753012282048,-480.0,0.00019397,2]
[373444117,1753012282058,-209.592378,0.00019397,2]
[373444118,1753012282068,-480.0,0.00019397,2]
[373444119,1753012282077,-887.07,0.00019397,2]
[373444120,1753012282088,-418.83093603,0.00019397,2]
[373444121,1753012282099,-304.22661265,0.00019397,2]
[373444122,1753012282108,-1566.27,0.00019397,2]
[373444123,1753012282117,-960.966326,0.00019397,2]
[373444124,1753012282127,-625.2,0.00019397,2]
[373444125,1753012282136,-960.966326,0.00019397,2]
[373444126,1753012282145,-923.66,0.00019397,2]
[373444127,1753012282154,-1212.36,0.00019397,2]
[373444128,1753012282163,-1874.35,0.00019397,2]
[373444129,1753012282174,-960.966326,0.00019397,2]
[373444130,1753012282183,-960.966326,0.00019397,2]
[373444131,1753012282193,-1296.59,0.00019397,2]
[373444132,1753012282202,-480.0,0.00019397,2]
[373444133,1753012282212,-4963.73,0.00019397,2]
[373444134,1753012282222,-970.21,0.00019397,2]
[373444135,1753012282231,-480.0,0.00019397,2]
[373444136,1753012282241,-332.50842319,0.00019397,2]
[373444137,1753012282251,-1926.46,0.00019397,2]
[373444138,1753012282260,-480.0,0.00019397,2]
[373444139,1753012282269,-480.0,0.00019397,2]
[373444140,1753012282278,-480.0,0.00019397,2]
[373444141,1753012282287,-1105.74,0.00019397,2]
[373444142,1753012282296,-2223.07,0.00019397,2]
[373444143,1753012282305,-480.0,0.00019397,2]
[373444144,1753012282314,-1088.0,0.00019397,2]
[373444145,1753012282324,-1119.2,0.00019397,2]
[373444146,1753012282333,-1872.68,0.00019397,2]
[373444147,1753012282342,-480.0,0.00019397,2]
[373444148,1753012282351,-1797.04,0.00019397,2]
[373444149,1753012282360,-218.8458092,0.00019397,2]
[373444150,1753012282369,-480.0,0.00019397,2]
[373444151,1753012282378,-480.0,0.00019397,2]
[373444152,1753012282387,-2567.72,0.00019397,2]
[373444153,1753012282397,-480.0,0.00019397,2]
[373444154,1753012282406,-151.0,0.00019397,2]
[373444155,1753012282415,-151.0,0.00019397,2]
[373444156,1753012282425,-992.58,0.00019397,2]
[373444157,1753012282434,-480.0,0.00019397,2]
[373444158,1753012282443,-1808.01,0.00019397,2]
[373444159,1753012282453,-6110.78,0.00019397,2]
[373444160,1753012282463,-896.37,0.00019397,2]
[373444161,1753012282472,-480.0,0.00019397,2]
[373444162,1753012282482,-702.78,0.00019397,2]
[373444163,1753012282492,-1550.45,0.00019397,2]
[373444164,1753012282502,-1889.05,0.00019397,2]
[373444165,1753012282511,-442.88857285,0.00019397,2]
[373444166,1753012282521,-480.0,0.00019397,2]
[373444167,1753012282531,-1110.4,0.00019397,2]
[373444168,1753012282540,-2711.4,0.00019397,2]
[373444169,1753012282549,-1242.89,0.00019397,2]
[373444170,1753012282560,-480.0,0.00019397,2]
[373444171,1753012282570,-222.92486862,0.00019397,2]
[373444172,1753012282579,-480.0,0.00019397,2]
[373444173,1753012282588,-771.92,0.00019397,2]
[373444174,1753012282597,-2111.89,0.00019397,2]
[373444175,1753012282607,-480.0,0.00019397,2]
[373444176,1753012282616,-816.23,0.00019397,2]
[373444177,1753012282625,-592.46,0.00019397,2]
[373444178,1753012282635,-669.04,0.00019397,2]
[373444179,1753012282644,-320.11468,0.00019397,2]
[373444180,1753012282653,-320.11468,0.00019397,2]
[373444181,1753012282663,-480.0,0.00019397,2]
[373444182,1753012282671,-1544.59,0.00019397,2]
[373444183,1753012282681,-1822.53,0.00019397,2]
[373444184,1753012282690,-1968.48,0.00019397,2]
[373444185,1753012282699,-717.27,0.00019397,2]
[373444186,1753012282707,-480.0,0.00019397,2]
[373444187,1753012282717,-480.0,0.00019397,2]
[373444188,1753012282726,-480.0,0.00019397,2]
[373444189,1753012282735,-798.58,0.00019397,2]
[373444190,1753012282743,-320.11468,0.00019397,2]
[373444191,1753012282752,-320.11468,0.00019397,2]
[373444192,1753012282763,-568.71,0.00019397,2]
[373444193,1753012282772,-3012.54,0.00019397,2]
[373444194,1753012282781,-4404.82,0.00019397,2]
[373444195,1753012282790,-480.0,0.00019397,2]
[373444196,1753012282800,-1229.56,0.00019397,2]
[373444197,1753012282810,-520.0,0.00019397,2]
[373444198,1753012282821,-483.21438663,0.00019397,2]
[373444199,1753012282832,-2137.42,0.00019397,2]
[373444200,1753012282843,-1822.9,0.00019397,2]
[373444201,1753012282854,-480.0,0.00019397,2]
[373444202,1753012282864,-2165.91,0.00019397,2]
[373444203,1753012282874,-691.65,0.00019397,2]
[373444204,1753012282884,-480.0,0.00019397,2]
[373444205,1753012282894,-480.0,0.00019397,2]
[373444206,1753012282905,-480.0,0.00019397,2]
[373444207,1753012282914,-1954.05,0.00019397,2]
[373444208,1753012282924,-480.0,0.00019397,2]
[373444209,1753012282934,-1529.14,0.00019397,2]
[373444210,1753012282944,-805.51,0.00019397,2]